[Event "January 2 Early 2024"]
[Site "https://www.chess.com"]
[Date "2024.01.02"]
[Round "9"]
[White "Yashmetov, Mikhail"]
[Black "Piddubna, Bozhena"]
[Result "1-0"]
[Board "107"]
[TimeControl "180+1"]
[WhiteFideId "24198900"]
[BlackFideId "34109293"]
[WhiteElo "2510"]
[BlackElo "2259"]
[WhiteTeam "RUS"]
[BlackTeam "UKR"]
[WhiteClock "0:01:19"]
[BlackClock "0:00:19"]

1. d4 {[%clk 0:03:00]}  Nf6 {[%clk 0:02:57]} 2. g3 {[%clk 0:03:01]}  e6 {[%clk 0:02:57]} 3. Bg2 {[%clk 0:03:01]}  c5 {[%clk 0:02:53]} 4. Nf3 {[%clk 0:03:00]}  d5 {[%clk 0:02:53]} 5. O-O {[%clk 0:03:00]}  Nc6 {[%clk 0:02:48]} 6. c4 {[%clk 0:03:00]}  Be7 {[%clk 0:02:39]} 7. Nc3 {[%clk 0:02:57]}  O-O {[%clk 0:02:30]} 8. cxd5 {[%clk 0:02:55]}  exd5 {[%clk 0:02:24]} 9. b3 {[%clk 0:02:50]}  Bg4 {[%clk 0:02:22]} 10. dxc5 {[%clk 0:02:43]}  Bxc5 {[%clk 0:02:22]} 11. Na4 {[%clk 0:02:43]}  Bxf3 {[%clk 0:02:08]} 12. Bxf3 {[%clk 0:02:32]}  Bd4 {[%clk 0:02:08]} 13. Rb1 {[%clk 0:02:29]}  b5 {[%clk 0:02:04]} 14. Nb2 {[%clk 0:02:23]}  Ne4 {[%clk 0:02:04]} 15. Bd2 {[%clk 0:02:10]}  Ne5 {[%clk 0:01:48]} 16. Nd3 {[%clk 0:02:05]}  Nxf3+ {[%clk 0:01:33]} 17. exf3 {[%clk 0:02:05]}  Nc3 {[%clk 0:01:18]} 18. Bxc3 {[%clk 0:02:02]}  Bxc3 {[%clk 0:01:19]} 19. Rc1 {[%clk 0:01:56]}  b4 {[%clk 0:01:16]} 20. Nc5 {[%clk 0:01:51]}  d4 {[%clk 0:01:07]} 21. Qd3 {[%clk 0:01:43]}  Qf6 {[%clk 0:01:01]} 22. Nd7 {[%clk 0:01:39]}  Qg5 {[%clk 0:00:46]} 23. Nxf8 {[%clk 0:01:38]}  Rxf8 {[%clk 0:00:47]} 24. Rc2 {[%clk 0:01:37]}  h6 {[%clk 0:00:40]} 25. Kg2 {[%clk 0:01:35]}  Re8 {[%clk 0:00:36]} 26. Re2 {[%clk 0:01:35]}  Rxe2 {[%clk 0:00:26]} 27. Qxe2 {[%clk 0:01:36]}  Qf5 {[%clk 0:00:25]} 28. Rd1 {[%clk 0:01:32]}  g6 {[%clk 0:00:20]} 29. Qe4 {[%clk 0:01:29]}  Qb5 {[%clk 0:00:20]} 30. Qd3 {[%clk 0:01:29]}  Qa5 {[%clk 0:00:20]} 31. Qe2 {[%clk 0:01:26]}  Kg7 {[%clk 0:00:17]} 32. Rc1 {[%clk 0:01:26]}  Qf5 {[%clk 0:00:16]} 33. Rd1 {[%clk 0:01:26]}  Qa5 {[%clk 0:00:17]} 34. h4 {[%clk 0:01:24]}  h5 {[%clk 0:00:16]} 35. Rd3 {[%clk 0:01:24]}  Qf5 {[%clk 0:00:15]} 36. Kg1 {[%clk 0:01:24]}  Qa5 {[%clk 0:00:14]} 37. f4 {[%clk 0:01:22]}  Qf5 {[%clk 0:00:14]} 38. Kg2 {[%clk 0:01:22]}  Qd5+ {[%clk 0:00:14]} 39. Qf3 {[%clk 0:01:22]}  Qa5 {[%clk 0:00:13]} 40. f5 {[%clk 0:01:21]}  Qxf5 {[%clk 0:00:09]} 41. Qxf5 {[%clk 0:01:21]}  gxf5 {[%clk 0:00:10]} 42. Kf3 {[%clk 0:01:21]}  Kf6 {[%clk 0:00:11]} 43. Kf4 {[%clk 0:01:22]}  Ke6 {[%clk 0:00:10]} 44. Kg5 {[%clk 0:01:21]}  Ke5 {[%clk 0:00:11]} 45. f3 {[%clk 0:01:18]}  a5 {[%clk 0:00:10]} 46. Kxh5 {[%clk 0:01:18]}  Be1 {[%clk 0:00:08]} 47. Kh6 {[%clk 0:01:07]}  Bxg3 {[%clk 0:00:08]} 48. h5 {[%clk 0:01:08]}  Bf2 {[%clk 0:00:05]} 49. Kg7 {[%clk 0:01:08]}  Bh4 {[%clk 0:00:03]} 50. h6 {[%clk 0:01:08]}  Bf6+ {[%clk 0:00:04]} 51. Kxf7 {[%clk 0:01:08]}  Bh8 {[%clk 0:00:04]} 52. h7 {[%clk 0:01:08]}  Kf4 {[%clk 0:00:02]} 53. Kg8 {[%clk 0:01:07]}  Be5 {[%clk 0:00:02]} 54. h8=Q {[%clk 0:01:08]}  Bxh8 {[%clk 0:00:02]} 55. Kxh8 {[%clk 0:01:09]}  Ke5 {[%clk 0:00:03]} 56. Kg7 {[%clk 0:01:09]}  Kd5 {[%clk 0:00:02]} 57. Kf6 {[%clk 0:01:09]}  f4 {[%clk 0:00:03]} 58. Kf5 {[%clk 0:01:10]}  Kc5 {[%clk 0:00:04]} 59. Kxf4 {[%clk 0:01:10]}  Kd5 {[%clk 0:00:04]} 60. Kf5 {[%clk 0:01:10]}  a4 {[%clk 0:00:04]} 61. bxa4 {[%clk 0:01:09]}  Kc4 {[%clk 0:00:05]} 62. Ke4 {[%clk 0:01:09]}  b3 {[%clk 0:00:04]} 63. axb3+ {[%clk 0:01:09]}  Kb4 {[%clk 0:00:04]} 64. f4 {[%clk 0:01:10]}  Kc5 {[%clk 0:00:04]} 65. f5 {[%clk 0:01:11]}  Kb4 {[%clk 0:00:05]} 66. f6 {[%clk 0:01:11]}  Kc5 {[%clk 0:00:05]} 67. f7 {[%clk 0:01:11]}  Kb4 {[%clk 0:00:06]} 68. f8=Q+ {[%clk 0:01:12]}  Ka5 {[%clk 0:00:07]} 69. Qc5+ {[%clk 0:01:12]}  Ka6 {[%clk 0:00:07]} 70. Rxd4 {[%clk 0:01:13]}  Kb7 {[%clk 0:00:07]} 71. b4 {[%clk 0:01:14]}  Kb8 {[%clk 0:00:07]} 72. a5 {[%clk 0:01:15]}  Kb7 {[%clk 0:00:08]} 73. Rd1 {[%clk 0:01:16]}  Ka6 {[%clk 0:00:09]} 74. Kd4 {[%clk 0:01:17]}  Kb7 {[%clk 0:00:09]} 75. Kc4 {[%clk 0:01:18]}  Ka8 {[%clk 0:00:10]} 76. Rg1 {[%clk 0:01:18]}  Kb8 {[%clk 0:00:10]} 77. Rg6 {[%clk 0:01:19]}  Kb7 {[%clk 0:00:11]} 78. Kb5 {[%clk 0:01:19]}  Ka8 {[%clk 0:00:12]} 79. Ka4 {[%clk 0:01:19]}  Kb8 {[%clk 0:00:13]} 80. b5 {[%clk 0:01:20]}  Kb7 {[%clk 0:00:14]} 81. b6 {[%clk 0:01:21]}  Ka8 {[%clk 0:00:15]} 82. a6 {[%clk 0:01:21]}  Kb8 {[%clk 0:00:15]} 83. Rc6 {[%clk 0:01:21]}  Ka8 {[%clk 0:00:16]} 84. Kb4 {[%clk 0:01:22]}  Kb8 {[%clk 0:00:16]} 85. a7+ {[%clk 0:01:22]}  Ka8 {[%clk 0:00:17]} 86. Rc8+ {[%clk 0:01:22]}  Kb7 {[%clk 0:00:18]} 87. Qc6+ {[%clk 0:01:22]}  Ka6 {[%clk 0:00:18]} 88. Kc5 {[%clk 0:01:22]}  Ka5 {[%clk 0:00:18]} 89. Rh8 {[%clk 0:01:21]}  Ka6 {[%clk 0:00:18]} 90. Rh7 {[%clk 0:01:22]}  Ka5 {[%clk 0:00:19]} 91. a8=Q# {[%clk 0:01:19]} 1-0

[Event "January 2 Early 2024"]
[Site "https://www.chess.com"]
[Date "2024.01.02"]
[Round "9"]
[White "Palczert, Matyas"]
[Black "Sanchez Alvares, Kelvin Antonio"]
[Result "1-0"]
[Board "111"]
[TimeControl "180+1"]
[WhiteFideId "784958"]
[BlackFideId "3906680"]
[WhiteElo "2592"]
[BlackElo "2461"]
[WhiteTeam "HUN"]
[BlackTeam "VEN"]
[WhiteClock "0:01:13"]
[BlackClock "0:00:00"]

1. d4 {[%clk 0:03:00]}  Nf6 {[%clk 0:02:55]} 2. Nc3 {[%clk 0:03:00]}  c5 {[%clk 0:02:54]} 3. d5 {[%clk 0:02:52]}  e5 {[%clk 0:02:51]} 4. e4 {[%clk 0:02:51]}  d6 {[%clk 0:02:45]} 5. Nf3 {[%clk 0:02:51]}  a6 {[%clk 0:02:45]} 6. a4 {[%clk 0:02:50]}  Bg4 {[%clk 0:02:43]} 7. h3 {[%clk 0:02:46]}  Bxf3 {[%clk 0:02:43]} 8. Qxf3 {[%clk 0:02:47]}  g6 {[%clk 0:02:42]} 9. g4 {[%clk 0:02:47]}  Bg7 {[%clk 0:02:41]} 10. h4 {[%clk 0:02:45]}  h5 {[%clk 0:02:40]} 11. g5 {[%clk 0:02:44]}  Nfd7 {[%clk 0:02:39]} 12. Bh3 {[%clk 0:02:43]}  O-O {[%clk 0:02:38]} 13. Ne2 {[%clk 0:02:43]}  c4 {[%clk 0:02:31]} 14. Ng3 {[%clk 0:02:42]}  Nc5 {[%clk 0:02:29]} 15. Be3 {[%clk 0:02:39]}  Qa5+ {[%clk 0:02:26]} 16. Kf1 {[%clk 0:02:32]}  c3 {[%clk 0:02:09]} 17. b3 {[%clk 0:02:24]}  Nbd7 {[%clk 0:02:04]} 18. Nxh5 {[%clk 0:02:09]}  gxh5 {[%clk 0:02:01]} 19. Qxh5 {[%clk 0:02:08]}  f5 {[%clk 0:01:59]} 20. Bxf5 {[%clk 0:02:05]}  Rxf5 {[%clk 0:01:56]} 21. exf5 {[%clk 0:02:05]}  Ne4 {[%clk 0:01:54]} 22. f6 {[%clk 0:01:55]}  Qxd5 {[%clk 0:01:50]} 23. Qg6 {[%clk 0:01:22]}  Nexf6 {[%clk 0:01:43]} 24. gxf6 {[%clk 0:01:22]}  Nxf6 {[%clk 0:01:31]} 25. Rg1 {[%clk 0:01:19]}  Ne8 {[%clk 0:01:31]} 26. h5 {[%clk 0:01:16]}  Qf7 {[%clk 0:01:30]} 27. h6 {[%clk 0:01:15]}  Qxg6 {[%clk 0:01:29]} 28. Rxg6 {[%clk 0:01:14]}  Kf7 {[%clk 0:00:00]} 29. hxg7 {[%clk 0:01:13]} 1-0

[Event "January 2 Early 2024"]
[Site "https://www.chess.com"]
[Date "2024.01.02"]
[Round "9"]
[White "Leisch, Lukas"]
[Black "Travkina, Anastasia"]
[Result "0-1"]
[Board "115"]
[TimeControl "180+1"]
[WhiteFideId "1632094"]
[BlackFideId "24129151"]
[WhiteElo "2522"]
[BlackElo "2399"]
[WhiteTeam "AUT"]
[BlackTeam "RUS"]
[WhiteClock "0:00:00"]
[BlackClock "0:00:19"]

1. d4 {[%clk 0:02:59]}  Nf6 {[%clk 0:02:59]} 2. Nc3 {[%clk 0:02:59]}  d5 {[%clk 0:02:59]} 3. Bf4 {[%clk 0:03:00]}  c6 {[%clk 0:02:57]} 4. e3 {[%clk 0:02:59]}  Bf5 {[%clk 0:02:57]} 5. Bd3 {[%clk 0:02:59]}  Bg6 {[%clk 0:02:56]} 6. h4 {[%clk 0:02:51]}  e6 {[%clk 0:02:45]} 7. h5 {[%clk 0:02:48]}  Bxd3 {[%clk 0:02:44]} 8. cxd3 {[%clk 0:02:44]}  h6 {[%clk 0:02:42]} 9. Nf3 {[%clk 0:02:43]}  Bd6 {[%clk 0:02:35]} 10. Ne5 {[%clk 0:02:42]}  Bc7 {[%clk 0:02:35]} 11. Qb3 {[%clk 0:02:39]}  Qc8 {[%clk 0:02:30]} 12. O-O-O {[%clk 0:02:33]}  Nbd7 {[%clk 0:02:30]} 13. Kb1 {[%clk 0:02:30]}  a5 {[%clk 0:02:23]} 14. Na4 {[%clk 0:02:29]}  b5 {[%clk 0:02:20]} 15. Nc5 {[%clk 0:02:28]}  Nxc5 {[%clk 0:02:01]} 16. dxc5 {[%clk 0:02:28]}  O-O {[%clk 0:01:30]} 17. Nxc6 {[%clk 0:02:23]}  Re8 {[%clk 0:01:24]} 18. Bxc7 {[%clk 0:02:07]}  Qxc7 {[%clk 0:01:25]} 19. Qxb5 {[%clk 0:02:08]}  a4 {[%clk 0:01:16]} 20. Rc1 {[%clk 0:01:53]}  d4 {[%clk 0:01:06]} 21. Nxd4 {[%clk 0:01:48]}  Reb8 {[%clk 0:01:03]} 22. Qc6 {[%clk 0:01:18]}  Qa5 {[%clk 0:00:52]} 23. Rc2 {[%clk 0:01:15]}  Nd5 {[%clk 0:00:51]} 24. Nxe6 {[%clk 0:01:09]}  Nc3+ {[%clk 0:00:35]} 25. Ka1 {[%clk 0:01:08]}  fxe6 {[%clk 0:00:21]} 26. Qxe6+ {[%clk 0:01:05]}  Kh8 {[%clk 0:00:21]} 27. bxc3 {[%clk 0:00:45]}  Qxc5 {[%clk 0:00:21]} 28. Qc4 {[%clk 0:00:38]}  Qa3 {[%clk 0:00:20]} 29. Qd4 {[%clk 0:00:32]}  Ra7 {[%clk 0:00:20]} 30. c4 {[%clk 0:00:32]}  Rab7 {[%clk 0:00:20]} 31. Qc3 {[%clk 0:00:27]}  Qc5 {[%clk 0:00:21]} 32. Rcc1 {[%clk 0:00:14]}  a3 {[%clk 0:00:20]} 33. d4 {[%clk 0:00:13]}  Qf5 {[%clk 0:00:20]} 34. Qxa3 {[%clk 0:00:02]}  Qxf2 {[%clk 0:00:19]} 35. Qc3 {[%clk 0:00:00]}  Rb2 {[%clk 0:00:19]} 0-1

[Event "January 2 Early 2024"]
[Site "https://www.chess.com"]
[Date "2024.01.02"]
[Round "9"]
[White "Lehtosaari, Mauri"]
[Black "Kleibel, Uwe"]
[Result "1-0"]
[Board "117"]
[TimeControl "180+1"]
[WhiteFideId "501999"]
[BlackFideId "1270982"]
[WhiteElo "2506"]
[BlackElo "2360"]
[WhiteTeam "FIN"]
[BlackTeam "GER"]
[WhiteClock "0:00:06"]
[BlackClock "0:00:05"]

1. e4 {[%clk 0:02:57]}  e5 {[%clk 0:02:58]} 2. Nf3 {[%clk 0:02:57]}  Nc6 {[%clk 0:02:55]} 3. Bb5 {[%clk 0:02:52]}  a6 {[%clk 0:02:53]} 4. Ba4 {[%clk 0:02:51]}  Nf6 {[%clk 0:02:53]} 5. d3 {[%clk 0:02:51]}  b5 {[%clk 0:02:50]} 6. Bb3 {[%clk 0:02:51]}  Bc5 {[%clk 0:02:50]} 7. c3 {[%clk 0:02:50]}  d6 {[%clk 0:02:49]} 8. h3 {[%clk 0:02:50]}  Bb6 {[%clk 0:02:49]} 9. O-O {[%clk 0:02:50]}  h6 {[%clk 0:02:49]} 10. Re1 {[%clk 0:02:45]}  g5 {[%clk 0:02:40]} 11. Be3 {[%clk 0:02:41]}  g4 {[%clk 0:02:38]} 12. hxg4 {[%clk 0:02:40]}  Bxg4 {[%clk 0:02:38]} 13. Bxb6 {[%clk 0:02:40]}  cxb6 {[%clk 0:02:39]} 14. Nbd2 {[%clk 0:02:37]}  Rg8 {[%clk 0:02:39]} 15. Nf1 {[%clk 0:02:30]}  Ne7 {[%clk 0:02:34]} 16. Ng3 {[%clk 0:02:28]}  Ng6 {[%clk 0:02:34]} 17. Qd2 {[%clk 0:02:23]}  Bxf3 {[%clk 0:02:25]} 18. gxf3 {[%clk 0:02:18]}  Nh4 {[%clk 0:02:00]} 19. Qxh6 {[%clk 0:02:10]}  Nxf3+ {[%clk 0:01:54]} 20. Kf1 {[%clk 0:02:10]}  Nxe1 {[%clk 0:01:49]} 21. Kxe1 {[%clk 0:02:09]}  Rg6 {[%clk 0:01:15]} 22. Qh4 {[%clk 0:02:02]}  Ng4 {[%clk 0:01:03]} 23. Qh8+ {[%clk 0:01:43]}  Kd7 {[%clk 0:01:03]} 24. Qh7 {[%clk 0:01:38]}  Qg8 {[%clk 0:00:54]} 25. Qxg8 {[%clk 0:01:33]}  Rgxg8 {[%clk 0:00:54]} 26. Ke2 {[%clk 0:01:21]}  Raf8 {[%clk 0:00:53]} 27. Rh1 {[%clk 0:01:17]}  Rh8 {[%clk 0:00:52]} 28. Rf1 {[%clk 0:01:06]}  Rh2 {[%clk 0:00:47]} 29. Kf3 {[%clk 0:00:56]}  Nh6 {[%clk 0:00:47]} 30. Rg1 {[%clk 0:00:44]}  f5 {[%clk 0:00:45]} 31. Ke2 {[%clk 0:00:27]}  f4 {[%clk 0:00:27]} 32. Nf1 {[%clk 0:00:27]}  Rh3 {[%clk 0:00:25]} 33. Rg7+ {[%clk 0:00:25]}  Kd8 {[%clk 0:00:20]} 34. Be6 {[%clk 0:00:25]}  Rh4 {[%clk 0:00:10]} 35. Rd7+ {[%clk 0:00:22]}  Ke8 {[%clk 0:00:10]} 36. Ra7 {[%clk 0:00:23]}  Rf6 {[%clk 0:00:10]} 37. Bd7+ {[%clk 0:00:21]}  Kd8 {[%clk 0:00:11]} 38. Bc6 {[%clk 0:00:20]}  a5 {[%clk 0:00:10]} 39. Rb7 {[%clk 0:00:20]}  Kc8 {[%clk 0:00:09]} 40. Rxb6 {[%clk 0:00:19]}  Kc7 {[%clk 0:00:10]} 41. Ra6 {[%clk 0:00:20]}  b4 {[%clk 0:00:10]} 42. Bd5 {[%clk 0:00:20]}  bxc3 {[%clk 0:00:10]} 43. bxc3 {[%clk 0:00:20]}  Ng4 {[%clk 0:00:10]} 44. Rxa5 {[%clk 0:00:20]}  Rh2 {[%clk 0:00:10]} 45. Nxh2 {[%clk 0:00:20]}  Nxh2 {[%clk 0:00:10]} 46. d4 {[%clk 0:00:20]}  f3+ {[%clk 0:00:11]} 47. Kd2 {[%clk 0:00:18]}  Ng4 {[%clk 0:00:11]} 48. Ra7+ {[%clk 0:00:19]}  Kb6 {[%clk 0:00:11]} 49. Rb7+ {[%clk 0:00:18]}  Ka6 {[%clk 0:00:12]} 50. dxe5 {[%clk 0:00:18]}  dxe5 {[%clk 0:00:12]} 51. Re7 {[%clk 0:00:18]}  Rh6 {[%clk 0:00:10]} 52. Re6+ {[%clk 0:00:15]}  Rxe6 {[%clk 0:00:10]} 53. Bxe6 {[%clk 0:00:16]}  Nxf2 {[%clk 0:00:11]} 54. Ke3 {[%clk 0:00:16]}  Nd1+ {[%clk 0:00:09]} 55. Kxf3 {[%clk 0:00:16]}  Nxc3 {[%clk 0:00:10]} 56. Bd5 {[%clk 0:00:14]}  Kb6 {[%clk 0:00:10]} 57. Kg4 {[%clk 0:00:12]}  Kc5 {[%clk 0:00:10]} 58. Bb3 {[%clk 0:00:06]}  Nxe4 {[%clk 0:00:08]} 59. Kf5 {[%clk 0:00:07]}  Kd4 {[%clk 0:00:08]} 60. a4 {[%clk 0:00:06]}  Nc5 {[%clk 0:00:09]} 61. Bd1 {[%clk 0:00:05]}  e4 {[%clk 0:00:08]} 62. a5 {[%clk 0:00:06]}  e3 {[%clk 0:00:08]} 63. Be2 {[%clk 0:00:06]}  Kc3 {[%clk 0:00:08]} 64. a6 {[%clk 0:00:06]}  Nd7 {[%clk 0:00:04]} 65. Ke6 {[%clk 0:00:05]}  Nb6 {[%clk 0:00:04]} 66. Kd6 {[%clk 0:00:05]}  Kd2 {[%clk 0:00:05]} 67. Bf1 {[%clk 0:00:05]}  e2 {[%clk 0:00:05]} 68. Bxe2 {[%clk 0:00:05]}  Kxe2 {[%clk 0:00:06]} 69. Kc6 {[%clk 0:00:06]}  Na8 {[%clk 0:00:06]} 70. Kb7 {[%clk 0:00:06]}  Kd3 {[%clk 0:00:05]} 71. Kxa8 {[%clk 0:00:06]} 1-0

[Event "January 2 Early 2024"]
[Site "https://www.chess.com"]
[Date "2024.01.02"]
[Round "9"]
[White "th3d4rkness"]
[Black "Namitbir Singh Walia"]
[Result "0-1"]
[Board "122"]
[TimeControl "180+1"]
[BlackFideId "35071068"]
[WhiteElo "2159"]
[BlackElo "2466"]
[BlackTeam "IND"]
[WhiteClock "0:00:07"]
[BlackClock "0:00:18"]

1. d4 {[%clk 0:02:58]}  d5 {[%clk 0:02:56]} 2. c4 {[%clk 0:02:57]}  c6 {[%clk 0:02:57]} 3. Nf3 {[%clk 0:02:56]}  Nf6 {[%clk 0:02:57]} 4. cxd5 {[%clk 0:02:56]}  cxd5 {[%clk 0:02:57]} 5. Nc3 {[%clk 0:02:56]}  Nc6 {[%clk 0:02:57]} 6. Ne5 {[%clk 0:02:49]}  Bf5 {[%clk 0:02:53]} 7. e3 {[%clk 0:02:42]}  a6 {[%clk 0:02:39]} 8. Bd3 {[%clk 0:02:38]}  Bxd3 {[%clk 0:02:35]} 9. Nxd3 {[%clk 0:02:35]}  e6 {[%clk 0:02:34]} 10. O-O {[%clk 0:02:33]}  Bd6 {[%clk 0:02:34]} 11. f4 {[%clk 0:02:31]}  O-O {[%clk 0:02:34]} 12. a3 {[%clk 0:02:28]}  b5 {[%clk 0:02:35]} 13. Ne5 {[%clk 0:02:26]}  Qb6 {[%clk 0:02:35]} 14. Kh1 {[%clk 0:02:17]}  Rfc8 {[%clk 0:02:30]} 15. Bd2 {[%clk 0:02:08]}  Qb7 {[%clk 0:02:17]} 16. Be1 {[%clk 0:02:05]}  b4 {[%clk 0:02:13]} 17. Na4 {[%clk 0:01:57]}  bxa3 {[%clk 0:02:07]} 18. bxa3 {[%clk 0:01:57]}  Rab8 {[%clk 0:02:07]} 19. Bh4 {[%clk 0:01:41]}  Qb3 {[%clk 0:01:14]} 20. Bxf6 {[%clk 0:01:30]}  Qxd1 {[%clk 0:01:13]} 21. Rfxd1 {[%clk 0:01:24]}  gxf6 {[%clk 0:01:14]} 22. Nd7 {[%clk 0:01:21]}  Rb3 {[%clk 0:01:14]} 23. Nxf6+ {[%clk 0:01:18]}  Kg7 {[%clk 0:01:15]} 24. Ng4 {[%clk 0:01:13]}  h5 {[%clk 0:01:14]} 25. Ne5 {[%clk 0:01:08]}  Nxe5 {[%clk 0:01:06]} 26. fxe5 {[%clk 0:01:02]}  Bxa3 {[%clk 0:01:06]} 27. Nb6 {[%clk 0:00:44]}  Rcc3 {[%clk 0:00:53]} 28. Nd7 {[%clk 0:00:35]}  Rxe3 {[%clk 0:00:53]} 29. h3 {[%clk 0:00:30]}  Rbd3 {[%clk 0:00:24]} 30. Nf6 {[%clk 0:00:28]}  Bb2 {[%clk 0:00:20]} 31. Rab1 {[%clk 0:00:19]}  Bxd4 {[%clk 0:00:18]} 32. Nxh5+ {[%clk 0:00:17]}  Kh6 {[%clk 0:00:18]} 33. Nf4 {[%clk 0:00:14]}  Rxd1+ {[%clk 0:00:18]} 34. Rxd1 {[%clk 0:00:15]}  Bxe5 {[%clk 0:00:19]} 35. Nd3 {[%clk 0:00:07]}  Bg3 {[%clk 0:00:18]} 0-1

[Event "January 2 Early 2024"]
[Site "https://www.chess.com"]
[Date "2024.01.02"]
[Round "9"]
[White "Manukian, Artak"]
[Black "Rose, Felix"]
[Result "1-0"]
[Board "123"]
[TimeControl "180+1"]
[WhiteFideId "13301373"]
[BlackFideId "5105722"]
[WhiteElo "2586"]
[BlackElo "2219"]
[WhiteTeam "ARM"]
[BlackTeam "MEX"]
[WhiteClock "0:00:57"]
[BlackClock "0:00:01"]

1. e4 {[%clk 0:03:00]}  e5 {[%clk 0:02:59]} 2. Nf3 {[%clk 0:03:00]}  Nc6 {[%clk 0:02:59]} 3. d4 {[%clk 0:03:01]}  exd4 {[%clk 0:02:59]} 4. Nxd4 {[%clk 0:03:02]}  Nf6 {[%clk 0:03:00]} 5. Nxc6 {[%clk 0:03:02]}  bxc6 {[%clk 0:03:00]} 6. e5 {[%clk 0:03:02]}  Qe7 {[%clk 0:03:00]} 7. Qe2 {[%clk 0:03:03]}  Nd5 {[%clk 0:02:59]} 8. c4 {[%clk 0:03:03]}  Nb6 {[%clk 0:03:00]} 9. b3 {[%clk 0:03:03]}  Ba6 {[%clk 0:03:00]} 10. g3 {[%clk 0:03:00]}  Qe6 {[%clk 0:02:58]} 11. Nc3 {[%clk 0:02:59]}  Bb4 {[%clk 0:02:58]} 12. Bb2 {[%clk 0:02:59]}  O-O {[%clk 0:02:47]} 13. Bg2 {[%clk 0:02:54]}  Qe7 {[%clk 0:02:40]} 14. O-O {[%clk 0:02:53]}  d5 {[%clk 0:02:39]} 15. exd6 {[%clk 0:02:48]}  Qxe2 {[%clk 0:02:27]} 16. Nxe2 {[%clk 0:02:49]}  Rae8 {[%clk 0:02:26]} 17. Nd4 {[%clk 0:02:34]}  Bxd6 {[%clk 0:01:51]} 18. Bxc6 {[%clk 0:02:25]}  Rd8 {[%clk 0:01:45]} 19. Nf5 {[%clk 0:02:21]}  f6 {[%clk 0:01:29]} 20. Rad1 {[%clk 0:02:15]}  Bc8 {[%clk 0:01:00]} 21. Nxd6 {[%clk 0:02:15]}  Rxd6 {[%clk 0:00:58]} 22. Rxd6 {[%clk 0:02:14]}  cxd6 {[%clk 0:00:59]} 23. Ba3 {[%clk 0:02:14]}  Rd8 {[%clk 0:00:57]} 24. Rd1 {[%clk 0:02:13]}  d5 {[%clk 0:00:51]} 25. cxd5 {[%clk 0:02:07]}  Kf7 {[%clk 0:00:30]} 26. d6 {[%clk 0:01:58]}  Bg4 {[%clk 0:00:26]} 27. f3 {[%clk 0:01:54]}  Bd7 {[%clk 0:00:23]} 28. Be4 {[%clk 0:01:48]}  f5 {[%clk 0:00:20]} 29. Bd3 {[%clk 0:01:45]}  g6 {[%clk 0:00:19]} 30. Kf2 {[%clk 0:01:45]}  Nc8 {[%clk 0:00:17]} 31. Bc4+ {[%clk 0:01:44]}  Be6 {[%clk 0:00:15]} 32. Bb5 {[%clk 0:01:29]}  Nb6 {[%clk 0:00:14]} 33. h4 {[%clk 0:01:20]}  Nd5 {[%clk 0:00:15]} 34. Bc6 {[%clk 0:01:17]}  Nc3 {[%clk 0:00:07]} 35. Rd2 {[%clk 0:01:13]}  a6 {[%clk 0:00:07]} 36. Bb4 {[%clk 0:01:09]}  Nb5 {[%clk 0:00:06]} 37. a4 {[%clk 0:01:06]}  Na7 {[%clk 0:00:07]} 38. Bb7 {[%clk 0:01:06]}  Bxb3 {[%clk 0:00:07]} 39. Bc5 {[%clk 0:00:57]}  Nc8 {[%clk 0:00:04]} 40. Bxc8 {[%clk 0:00:57]}  Rxc8 {[%clk 0:00:05]} 41. d7 {[%clk 0:00:58]}  Rd8 {[%clk 0:00:03]} 42. Bb6 {[%clk 0:00:57]}  Rxd7 {[%clk 0:00:01]} 43. Rxd7+ {[%clk 0:00:57]} 1-0

[Event "January 2 Early 2024"]
[Site "https://www.chess.com"]
[Date "2024.01.02"]
[Round "9"]
[White "Novikov, Evgenij"]
[Black "Poddubnyi, Viktor"]
[Result "1-0"]
[Board "126"]
[TimeControl "180+1"]
[WhiteFideId "4125380"]
[BlackFideId "4141989"]
[WhiteElo "2492"]
[BlackElo "2330"]
[WhiteTeam "RUS"]
[BlackTeam "RUS"]
[WhiteClock "0:01:10"]
[BlackClock "0:00:00"]

1. g4 {[%clk 0:03:00]}  g6 {[%clk 0:02:59]} 2. b4 {[%clk 0:02:59]}  Bg7 {[%clk 0:02:58]} 3. Nc3 {[%clk 0:02:57]}  d5 {[%clk 0:02:48]} 4. Bg2 {[%clk 0:02:50]}  Bxg4 {[%clk 0:02:21]} 5. Bxd5 {[%clk 0:02:38]}  c6 {[%clk 0:02:19]} 6. Bf3 {[%clk 0:02:34]}  Bxc3 {[%clk 0:01:57]} 7. dxc3 {[%clk 0:02:32]}  Qxd1+ {[%clk 0:01:57]} 8. Kxd1 {[%clk 0:02:33]}  Nf6 {[%clk 0:01:56]} 9. c4 {[%clk 0:02:24]}  Na6 {[%clk 0:01:44]} 10. b5 {[%clk 0:02:16]}  O-O-O+ {[%clk 0:01:43]} 11. Ke1 {[%clk 0:02:06]}  Nb4 {[%clk 0:01:38]} 12. Rb1 {[%clk 0:01:59]}  Nxc2+ {[%clk 0:01:31]} 13. Kf1 {[%clk 0:01:59]}  Rd1+ {[%clk 0:00:53]} 14. Kg2 {[%clk 0:01:59]}  Ne1+ {[%clk 0:00:52]} 15. Kg3 {[%clk 0:01:56]}  Nxf3 {[%clk 0:00:50]} 16. bxc6 {[%clk 0:01:44]}  bxc6 {[%clk 0:00:26]} 17. exf3 {[%clk 0:01:42]}  Bf5 {[%clk 0:00:25]} 18. Ra1 {[%clk 0:01:42]}  Rhd8 {[%clk 0:00:21]} 19. Kg2 {[%clk 0:01:37]}  Re1 {[%clk 0:00:20]} 20. Bb2 {[%clk 0:01:37]}  Rxa1 {[%clk 0:00:19]} 21. Bxa1 {[%clk 0:01:38]}  Rd2 {[%clk 0:00:18]} 22. Nh3 {[%clk 0:01:32]}  Bxh3+ {[%clk 0:00:18]} 23. Kxh3 {[%clk 0:01:33]}  Rxa2 {[%clk 0:00:18]} 24. Bd4 {[%clk 0:01:31]}  a5 {[%clk 0:00:16]} 25. Re1 {[%clk 0:01:30]}  Rd2 {[%clk 0:00:13]} 26. Bc3 {[%clk 0:01:23]}  Rd3 {[%clk 0:00:13]} 27. Bxa5 {[%clk 0:01:22]}  e6 {[%clk 0:00:11]} 28. Kg2 {[%clk 0:01:20]}  Nd7 {[%clk 0:00:11]} 29. Ra1 {[%clk 0:01:14]}  Ne5 {[%clk 0:00:10]} 30. c5 {[%clk 0:01:10]}  Nxf3 {[%clk 0:00:10]} 31. Bb6 {[%clk 0:01:10]}  Nh4+ {[%clk 0:00:10]} 32. Kf1 {[%clk 0:01:10]}  e5 {[%clk 0:00:08]} 33. Ra8+ {[%clk 0:01:10]}  Kd7 {[%clk 0:00:00]} 34. Rd8+ {[%clk 0:01:10]} 1-0